lending/lending_fUSD_20250501
["ID","MTS","AMOUNT","RATE_DAILY","PERIOD"]
[359556134,1746121843970,-151.0,0.0002898,7]
[359556135,1746121843980,-151.0,0.0002898,7]
[359556136,1746121843990,-151.0,0.0002898,7]
[359556137,1746121843999,-652.447531,0.0002898,7]
[359556138,1746121844009,-151.0,0.0002898,7]
[359556139,1746121844019,-652.447531,0.0002898,7]
[359556140,1746121844028,-151.0,0.0002898,7]
[359556141,1746121844038,-151.0,0.0002898,7]
[359556142,1746121844048,-151.0,0.0002898,7]
[359556143,1746121844057,-2247.76701,0.0002898,7]
[359556144,1746121844067,-200.37436967,0.0002898,7]
[359556145,1746121844100,-604.79948188,0.0002898,7]
[359556146,1746121844112,-1442.59315845,0.0002898,7]
[359556147,1746121844122,-151.0,0.0002898,7]
[359556148,1746121844132,-151.0,0.0002898,7]
[359556149,1746121844142,-151.0,0.0002898,7]
[359556150,1746121844152,-292.386008,0.0002898,7]
[359556151,1746121844162,-292.386008,0.0002898,7]
[359556152,1746121844172,-151.0,0.0002898,7]
[359556153,1746121844183,-724.400742,0.0002898,7]
[359556154,1746121844193,-1220.972449,0.0002898,2]
[359556155,1746121844222,-24416.62942325,0.0002898,2]
[359556156,1746121844233,-3458.72429355,0.0002898,2]
[359556157,1746121844243,-20284.2677188,0.0002898,2]
[359556158,1746121844252,-199.52,0.00028986,2]
[359556159,1746121844261,-25374.35841093,0.00028988,2]
[359556160,1746121844545,-3721.96775487,0.00028988,2]
[359556161,1746121844555,-20284.2677188,0.00028988,2]
[359556162,1746121844565,-464.0,0.0002899,5]
[359556163,1746121844575,-151.0,0.0002899,7]
[359556164,1746121844587,-151.0,0.0002899,7]
[359556165,1746121844596,-151.0,0.0002899,7]
[359556166,1746121844604,-151.0,0.0002899,7]
[359556167,1746121844613,-151.0,0.0002899,7]
[359556168,1746121844622,-642.338464,0.0002899,7]
[359556169,1746121844631,-642.338464,0.0002899,7]
[359556170,1746121844640,-227.951778,0.0002899,7]
[359556171,1746121844650,-151.0,0.0002899,7]
[359556172,1746121844659,-249.628861,0.0002899,7]
[359556173,1746121844668,-249.628861,0.0002899,7]
[359556174,1746121844677,-200.407014,0.0002899,7]
[359556175,1746121844687,-200.407014,0.0002899,7]
[359556176,1746121844697,-151.0,0.0002899,7]
[359556177,1746121844706,-160.701323,0.0002899,7]
[359556178,1746121844716,-408.350482,0.0002899,7]
[359556179,1746121844725,-408.350482,0.0002899,7]
[359556180,1746121844734,-161.491075,0.0002899,7]
[359556181,1746121844743,-1754.062277,0.0002899,7]
[359556182,1746121844752,-1047.918709,0.0002899,7]
[359556183,1746121844763,-1754.062277,0.0002899,7]
[359556184,1746121844772,-1047.918709,0.0002899,7]
[359556185,1746121844781,-151.0,0.0002899,7]
[359556186,1746121844791,-151.0,0.0002899,7]
[359556187,1746121844801,-151.0,0.0002899,7]
[359556188,1746121844810,-58192.6523316,0.0002899,2]
[359556189,1746121844820,-81137.0708751,0.0002899,2]
[359556190,1746121844830,-151.0,0.0002899,7]
[359556191,1746121844839,-937.41391617,0.0002899,2]
[359556192,1746121844849,-151.0,0.00028998,7]
[359556193,1746121844858,-652.447531,0.00028998,7]
[359556194,1746121844867,-652.447531,0.00028998,7]
[359556195,1746121844877,-158.137549,0.00028998,7]
[359556196,1746121844887,-151.0,0.00028998,7]
[359556197,1746121844896,-2247.76701,0.00028998,7]
[359556198,1746121844905,-2247.76701,0.00028998,7]
[359556199,1746121844915,-151.0,0.00028998,7]
[359556200,1746121844925,-151.0,0.00028998,7]
[359556201,1746121844934,-292.386008,0.00028998,7]
[359556202,1746121844944,-292.386008,0.00028998,7]
[359556203,1746121844953,-724.400742,0.00028998,7]
[359556204,1746121844967,-29096.3261658,0.00028998,2]
[359556205,1746121844977,-500.0,0.00028999,10]
[359556206,1746121844987,-500.0,0.00028999,10]
[359556207,1746121844996,-500.0,0.00028999,10]
[359556208,1746121845007,-54907.06774504,0.00029,2]
[359556209,1746121845018,-386.78279525,0.00029,6]
[359556210,1746121845028,-260.31776711,0.00029,2]
[359556211,1746121845039,-151.0,0.00029,7]
[359556212,1746121845048,-151.0,0.00029,7]
[359556213,1746121845059,-299.869671,0.00029,7]
[359556214,1746121845068,-299.869671,0.00029,7]
[359556215,1746121845078,-239.009783,0.00029,7]
[359556216,1746121845088,-239.009783,0.00029,7]
[359556217,1746121845097,-151.0,0.00029,7]
[359556218,1746121845106,-255.658181,0.00029,7]
[359556219,1746121845116,-151.0,0.00029,7]
[359556220,1746121845125,-255.658181,0.00029,7]
[359556221,1746121845134,-151.0,0.00029,7]
[359556222,1746121845144,-258.608104,0.00029,7]
[359556223,1746121845153,-67926.56887654,0.00029,2]
[359556226,1746121846029,-311.56911709,0.0002896,2]
[359556227,1746121846039,-151.0,0.0002897,7]
[359556228,1746121846049,-151.0,0.0002898,7]
[359556229,1746121846059,-1461.58150886,0.00029,2]
[359556230,1746121846068,-681.902131,0.00029,7]
[359556231,1746121846078,-681.902131,0.00029,7]
[359556232,1746121846088,-151.0,0.00029,7]
[359556233,1746121846097,-278.04511205,0.00029,7]
[359556234,1746121846142,-8.07077195,0.00029,7]
[359556235,1746121846152,-151.0,0.00029,7]
[359556236,1746121846161,-151.0,0.00029,7]
[359556237,1746121846171,-327.824189,0.00029,7]
[359556238,1746121846180,-151.0,0.00029,7]
[359556239,1746121846190,-327.824189,0.00029,7]
[359556240,1746121846199,-151.0,0.00029,7]
[359556241,1746121846208,-332.30467,0.00029,7]
[359556242,1746121846217,-332.30467,0.00029,7]
[359556243,1746121846226,-332.30467,0.00029,7]
[359556244,1746121846235,-332.304669,0.00029,7]
[359556245,1746121846245,-225.852903,0.00029,7]
[359556246,1746121846254,-151.0,0.00029,7]
[359556247,1746121846264,-225.852903,0.00029,7]
[359556248,1746121846273,-233.120148,0.00029,7]
[359556249,1746121846283,-298.914112,0.00029,7]
[359556250,1746121846292,-298.914112,0.00029,7]
[359556251,1746121846303,-151.0,0.00029,7]
[359556252,1746121846312,-39.40799305,0.00029,7]
[359556253,1746121846397,-111.59200695,0.00029,7]
[359556254,1746121846411,-151.0,0.00029,7]
[359556255,1746121846420,-23.81727381,0.00029,7]
[359556256,1746121846442,-127.18272619,0.00029,7]
[359556257,1746121846452,-151.0,0.00029,7]
[359556258,1746121846462,-151.0,0.00029,7]
[359556259,1746121846472,-642.338464,0.00029,7]
[359556260,1746121846483,-477.91908502,0.00029,7]
[359556261,1746121846499,-164.41937898,0.00029,7]
[359556262,1746121846509,-103.39660332,0.00029,7]
[359556263,1746121846520,-47.60339668,0.00029,7]
[359556264,1746121846531,-151.0,0.00029,7]
[359556265,1746121846541,-249.628861,0.00029,7]
[359556266,1746121846551,-62.36106098,0.00029,7]
[359556267,1746121846563,-187.26780002,0.00029,7]
[359556268,1746121846572,-200.407014,0.00029,7]
[359556269,1746121846582,-200.407014,0.00029,7]
[359556270,1746121846592,-151.0,0.00029,7]
[359556271,1746121846602,-151.0,0.00029,7]
[359556272,1746121846611,-408.350482,0.00029,7]
[359556273,1746121846621,-408.350482,0.00029,7]
[359556274,1746121846630,-151.0,0.00029,7]
[359556275,1746121846640,-1047.918709,0.00029,7]
[359556276,1746121846650,-1047.918709,0.00029,7]
[359556277,1746121846659,-550.0,0.00029,2]
[359556278,1746121846669,-151.0,0.00029,7]
[359556279,1746121846678,-151.0,0.00029,7]
[359556280,1746121846688,-151.0,0.00029,7]
[359556281,1746121846698,-151.0,0.00029008,7]
[359556282,1746121846707,-151.0,0.00029008,7]
[359556283,1746121846717,-151.0,0.00029008,7]
[359556284,1746121846727,-151.0,0.00029008,7]
[359556285,1746121846736,-652.447531,0.00029008,7]
[359556286,1746121846746,-652.447531,0.00029008,7]
[359556287,1746121846756,-151.0,0.00029008,7]
[359556288,1746121846765,-2247.76701,0.00029008,7]
[359556289,1746121846774,-2247.76701,0.00029008,7]
[359556290,1746121846786,-151.0,0.00029008,7]
[359556291,1746121846795,-151.0,0.00029008,7]
[359556292,1746121846805,-295.99110407,0.00029008,7]
[359556293,1746121846815,-292.386008,0.00029008,7]
[359556294,1746121846824,-292.386008,0.00029008,7]
[359556295,1746121846834,-724.400742,0.00029008,7]
[359556296,1746121846843,-923.0,0.00029018,2]
[359556297,1746121846852,-1340.0,0.00029018,2]
[359556298,1746121846862,-797.0,0.00029018,2]
[359556299,1746121846871,-1206.0,0.00029018,2]
[359556300,1746121846881,-935.634,0.00029018,2]
[359556301,1746121846890,-2070.0,0.00029018,2]
[359556302,1746121846899,-6750.0,0.00029018,2]
[359556303,1746121846909,-153.0,0.00029018,2]
[359556304,1746121846919,-4003.0,0.00029018,2]
[359556305,1746121846928,-876.0,0.00029018,2]
[359556306,1746121846938,-878.0,0.00029018,2]
[359556307,1746121846947,-151.0,0.00029148,7]
[359556308,1746121846958,-151.0,0.00029148,7]
[359556309,1746121846968,-784.94720894,0.00029314,20]
[359556310,1746121846978,-2951.29299003,0.00029335,2]
[359556311,1746121846987,-1020.77992398,0.000294,2]
[359556312,1746121846997,-1087.36812205,0.000294,2]
[359556313,1746121847006,-150.0,0.00029425,2]
[359556314,1746121847016,-150.0,0.00029425,2]
[359556315,1746121847025,-150.0,0.00029425,2]
[359556316,1746121847035,-154.5,0.0002944,2]
[359556317,1746121847044,-823.0,0.00029443,2]
[359556318,1746121847054,-166.66,0.00029493,2]
[359556319,1746121847063,-1000.0,0.00029647,2]
[359556320,1746121847072,-20284.2677188,0.00029678,2]
[359556321,1746121847083,-151.0,0.00029688,7]
[359556322,1746121847092,-1754.062277,0.00029688,7]
[359556323,1746121847101,-1754.062277,0.00029688,7]
[359556324,1746121847111,-151.0,0.00029688,7]
[359556325,1746121847120,-150.0,0.00029719,2]
[359556326,1746121847132,-150.0,0.00029721,2]
[359556327,1746121847141,-150.0,0.00029724,2]
[359556328,1746121847150,-150.0,0.00029725,2]
[359556329,1746121847160,-150.0,0.00029727,2]
[359556330,1746121847170,-150.0,0.00029727,2]
[359556331,1746121847179,-150.0,0.0002973,2]
[359556332,1746121847189,-150.0,0.0002973,2]
[359556333,1746121847199,-150.0,0.00029732,2]
[359556334,1746121847209,-150.0,0.00029741,2]
[359556335,1746121847219,-150.0,0.00029741,2]
[359556336,1746121847228,-150.0,0.00029746,2]
[359556337,1746121847237,-150.0,0.00029747,2]
[359556338,1746121847246,-150.0,0.00029747,2]
[359556339,1746121847255,-150.0,0.00029748,2]
[359556340,1746121847265,-150.0,0.00029752,2]
[359556341,1746121847276,-150.0,0.00029753,2]
[359556342,1746121847285,-264.0,0.0002976,2]
[359556343,1746121847294,-150.0,0.00029763,2]
[359556344,1746121847303,-150.0,0.00029765,2]
[359556345,1746121847312,-150.0,0.00029768,2]
[359556346,1746121847321,-1000.0,0.00029768,2]
[359556347,1746121847330,-151.0,0.00029773,7]
[359556348,1746121847339,-151.0,0.00029773,2]
[359556349,1746121847348,-257.91778498,0.00029773,2]
[359556350,1746121847358,-150.0,0.00029774,2]
[359556351,1746121847368,-150.0,0.00029775,2]
[359556352,1746121847377,-150.0,0.00029779,2]
[359556353,1746121847386,-150.0,0.0002978,2]
[359556354,1746121847396,-154.36297733,0.0002978,2]
[359556355,1746121847407,-150.0,0.00029785,2]
[359556356,1746121847416,-150.0,0.00029786,2]
[359556357,1746121847426,-150.0,0.00029787,2]
[359556358,1746121847435,-29096.3261658,0.00029788,2]
[359556359,1746121847446,-20284.2677188,0.00029788,2]
[359556360,1746121847455,-150.0,0.0002979,2]
[359556361,1746121847464,-150.0,0.00029791,2]
[359556362,1746121847474,-150.0,0.00029791,2]
[359556363,1746121847485,-1000.0,0.00029793,2]
[359556364,1746121847494,-150.0,0.00029793,2]
[359556365,1746121847503,-150.0,0.00029794,2]
[359556366,1746121847513,-150.0,0.00029797,2]
[359556367,1746121847522,-150.0,0.00029797,2]
[359556368,1746121847531,-151.0,0.00029798,7]
[359556369,1746121847540,-151.0,0.00029798,7]
[359556370,1746121847550,-4598.39822937,0.00029798,2]
[359556371,1746121847559,-150.0,0.00029806,2]
[359556372,1746121847568,-150.0,0.00029808,2]
[359556373,1746121847577,-150.0,0.0002981,2]
[359556374,1746121847587,-150.0,0.0002981,2]
[359556375,1746121847596,-150.0,0.00029814,2]
[359556376,1746121847605,-150.0,0.00029816,2]
[359556377,1746121847615,-327.824189,0.0002982,7]
[359556378,1746121847624,-327.824189,0.0002982,7]
[359556379,1746121847634,-150.0,0.0002982,2]
[359556380,1746121847643,-150.0,0.00029835,2]
[359556381,1746121847653,-150.0,0.00029836,2]
[359556382,1746121847662,-150.0,0.00029837,2]
[359556383,1746121847672,-150.0,0.00029839,2]
[359556384,1746121847682,-150.0,0.00029844,2]
[359556385,1746121847692,-150.0,0.00029849,2]
[359556386,1746121847701,-150.0,0.0002985,2]
[359556387,1746121847711,-150.0,0.00029852,2]
[359556388,1746121847720,-150.0,0.00029854,2]
[359556389,1746121847730,-150.0,0.00029857,2]
[359556390,1746121847739,-150.0,0.00029858,2]
[359556391,1746121847748,-150.0,0.00029858,2]
[359556392,1746121847758,-150.0,0.0002986,2]
[359556393,1746121847768,-150.0,0.0002986,2]
[359556394,1746121847776,-150.0,0.0002986,2]
[359556395,1746121847786,-150.0,0.00029865,2]
[359556396,1746121847795,-784.94720894,0.00029866,21]
[359556397,1746121847805,-150.0,0.00029866,2]
[359556398,1746121847814,-150.0,0.00029866,2]
[359556399,1746121847824,-150.0,0.00029866,2]
[359556400,1746121847833,-150.0,0.00029873,2]
[359556401,1746121847842,-217.35718436,0.00029875,2]
[359556402,1746121847851,-255.658181,0.00029878,7]
[359556403,1746121847860,-255.658181,0.00029878,7]
[359556404,1746121847869,-151.0,0.00029878,7]
[359556405,1746121847879,-151.0,0.00029878,7]
[359556406,1746121847889,-151.0,0.00029878,7]
[359556407,1746121847898,-165.752895,0.00029878,7]
[359556408,1746121847907,-1000.0,0.0002988,2]
[359556409,1746121847916,-150.0,0.00029887,2]
[359556410,1746121847925,-150.0,0.0002989,2]
[359556411,1746121847935,-150.0,0.00029891,2]
[359556412,1746121847945,-150.0,0.00029893,2]
[359556413,1746121847954,-150.0,0.00029895,2]
[359556414,1746121847964,-150.0,0.00029898,2]
[359556415,1746121847974,-150.0,0.000299,2]
[359556416,1746121847983,-150.0,0.00029902,2]
[359556417,1746121847993,-20284.2677188,0.00029906,2]
[359556418,1746121848003,-150.0,0.00029909,2]
[359556419,1746121848012,-7051.33797118,0.0002991,2]
[359556420,1746121848033,-4021.11327879,0.0002991,2]
[359556421,1746121848043,-150.0,0.00029913,2]
[359556422,1746121848053,-150.0,0.00029914,2]
[359556423,1746121848062,-14081.05672121,0.00029917,2]
[359556424,1746121848073,-14502.75,0.00029917,2]
[359556425,1746121918125,572.07531589,0.00032876,60]
[359556426,1746122345117,-459.079733,0.0002135,2]
[359556427,1746122345140,-284.82626795,0.00021458,2]
[359556428,1746122345164,-300.0,0.00021557,2]
[359556429,1746122345186,-300.0,0.00021557,2]
[359556430,1746122345211,-1200.0,0.00021558,2]
[359556431,1746122345235,-300.0,0.00021558,2]
[359556432,1746122345259,-534.0,0.00021558,2]
[359556433,1746122345281,-262.01599656,0.00021558,2]
[359556434,1746122356257,-36360.07800249,0.00021559,2]
[359556435,1746122439082,172.41,0.00027425,30]
[359556437,1746122736882,168.304268,0.00031584,60]
[359556438,1746122946798,150.0,0.00032876,60]
[359556446,1746123031569,-257.0,0.00021558,2]
[359556447,1746123031583,-300.0,0.00021558,2]
[359556448,1746123031598,-48.1141744,0.00021559,2]
[359556449,1746123031675,-36671.12445323,0.00021559,2]
[359556450,1746123031688,-182.36784611,0.00021559,2]
[359556451,1746123031701,-150.0,0.0002327,2]
[359556452,1746123031718,-923.0,0.0002327,2]
[359556453,1746123031731,-1340.0,0.0002327,2]
[359556454,1746123031745,-1206.0,0.0002327,2]
[359556455,1746123031759,-797.0,0.0002327,2]
[359556456,1746123031776,-2056.147,0.0002327,2]
[359556457,1746123031789,-6743.0,0.0002327,2]
[359556458,1746123031798,-4003.0,0.0002327,2]
[359556459,1746123031809,-878.0,0.0002327,2]
[359556460,1746123031818,-420.0,0.00023437,2]
[359556461,1746123031828,-301.61811479,0.00023446,2]
[359556462,1746123031839,-207.4,0.00023446,2]
[359556463,1746123031848,-701.1363383,0.00023446,2]
[359556464,1746123031858,-215.0738,0.00024815,2]
[359556465,1746123031867,-432.0,0.0002548,2]
[359556466,1746123031877,-229.5572981,0.00025671,2]
[359556467,1746123031886,-4000.0,0.00025672,2]
[359556469,1746123031896,-552.12,0.00025688,2]
[359556471,1746123031905,-200.0,0.00025696,2]
[359556473,1746123031915,-1336.60930225,0.00025727,2]
[359556502,1746123032408,-527.22235995,0.00025727,2]
[359556503,1746123032450,-1209.1542531,0.00025727,2]
[359556504,1746123032462,-469.9405751,0.00025727,2]
[359556505,1746123032473,-798.82865656,0.00025727,2]
[359556506,1746123032488,-522.00025852,0.00025727,2]
[359556507,1746123032499,-3038.29459452,0.00025727,2]
[359556508,1746123032509,-6056.56,0.00025745,2]
[359556509,1746123032518,-1000.0,0.00025746,2]
[359556510,1746123032528,-168.83,0.00025771,2]
[359556511,1746123032538,-500.0,0.00025814,2]
[359556512,1746123032547,-200.0,0.00025859,2]
[359556513,1746123032557,-856.81,0.00026013,2]
[359556514,1746123032566,-1935.47485272,0.00026069,2]
[359556515,1746123032577,-520.59153593,0.00026069,2]
[359556516,1746123032699,-5402.37171454,0.00026069,2]
[359556517,1746123032710,-742.01575815,0.00026069,2]
[359556519,1746123037626,-457.02818783,0.0002327,2]
[359556520,1746123037639,-418.97181217,0.0002327,2]
[359556521,1746123037650,-1227.47613866,0.00026069,2]
[359556522,1746123037660,-223.0315306,0.00026184,2]
[359556523,1746123037669,-923.0,0.0002627,2]
[359556524,1746123037679,-1340.0,0.0002627,2]
[359556525,1746123037689,-388.776,0.0002627,2]
[359556526,1746123037698,-797.0,0.0002627,2]
[359556527,1746123037709,-2822.95415429,0.0002627,2]
[359556528,1746123037734,-1180.04584571,0.0002627,2]
[359556529,1746123037744,-480.65415429,0.0002627,2]
[359556530,1746123037764,-397.34584571,0.0002627,2]
[359556531,1746123037778,-876.0,0.0002627,2]
[359556532,1746123037787,-1294.5185,0.00026362,2]
[359556533,1746123037797,-23900.0,0.00026462,2]
[359556534,1746123037807,-665.59,0.00026469,2]
[359556535,1746123037816,-4924.3,0.0002653,2]
[359556536,1746123037826,-250.0,0.00026602,2]
[359556537,1746123037835,-166.66,0.00026788,2]
[359556538,1746123037846,-5394.17,0.00026815,2]
[359556539,1746123037855,-1795.2637,0.00026987,2]
[359556540,1746123037865,-5709.19,0.00027016,2]
[359556541,1746123037875,-5709.19,0.00027023,2]
[359556542,1746123037884,-5709.19,0.0002703,2]
[359556543,1746123037894,-5709.19,0.00027037,2]
[359556545,1746123037903,-5709.19,0.00027044,2]
[359556547,1746123037912,-5709.19,0.00027051,2]
[359556549,1746123037922,-5709.19,0.00027058,2]
[359556551,1746123037931,-5709.19,0.00027066,2]
[359556553,1746123037940,-5709.19,0.00027073,2]
[359556555,1746123037950,-5709.19,0.0002708,2]
[359556557,1746123037959,-5709.19,0.00027087,2]
[359556559,1746123037968,-5709.19,0.00027094,2]
[359556560,1746123037977,-5709.19,0.00027101,2]
[359556562,1746123037986,-5709.19,0.00027108,2]
[359556563,1746123037995,-5709.19,0.00027115,2]
[359556564,1746123038005,-5709.19,0.00027122,2]
[359556565,1746123038015,-5709.19,0.00027129,2]
[359556566,1746123038025,-5709.19,0.00027137,2]
[359556567,1746123038035,-5709.19,0.00027144,2]
[359556568,1746123038045,-5709.19,0.00027151,2]
[359556570,1746123038056,-4965.9037,0.00027294,2]
[359556572,1746123038065,-300.0,0.00027397,2]
[359556574,1746123038075,-300.0,0.00027397,2]
[359556575,1746123038085,-1000.0,0.00027397,2]
[359556576,1746123038094,-3978.05,0.00027397,2]
[359556577,1746123038104,-423.0,0.000274,2]
[359556578,1746123038113,-231.28369723,0.00027553,2]
[359556579,1746123038122,-166.66,0.00027894,2]
[359556580,1746123038133,-856.81,0.00028277,2]
[359556581,1746123038143,-1677.8642593,0.00028421,4]
[359556582,1746123038153,-8286.95,0.00028534,2]
[359556583,1746123038162,-3978.05,0.00028767,2]
[359556584,1746123038172,-161.7485,0.000289,2]
[359556585,1746123038181,-239.84119403,0.00028922,2]
[359556586,1746123038190,-1000.0,0.00028965,2]
[359556587,1746123038200,-151.0,0.0002897,7]
[359556588,1746123038209,-151.0,0.0002897,7]
[359556589,1746123038218,-233.055602,0.00028979,7]
[359556590,1746123038228,-151.0,0.0002898,7]
[359556591,1746123038237,-151.0,0.0002898,7]
[359556592,1746123038247,-166.27,0.00028989,2]
[359556593,1746123038256,-1083.929,0.0002899,21]
[359556594,1746123038266,-1000.0,0.00028993,2]
[359556595,1746123038275,-151.0,0.00028998,7]
[359556596,1746123038285,-151.0,0.00028998,7]
[359556597,1746123038294,-166.66,0.00028999,2]
[359556599,1746123038303,-1000.0,0.00029,3]
[359556601,1746123038313,-1000.0,0.00029,3]
[359556603,1746123038322,-1000.0,0.00029,3]
[359556605,1746123038331,-1000.0,0.00029,3]
[359556607,1746123038341,-202.648383,0.00029008,7]
[359556608,1746123038350,-224.696039,0.00029008,7]
[359556610,1746123038360,-923.0,0.0002927,2]
[359556612,1746123038369,-1208.792,0.0002927,2]
[359556614,1746123038380,-321.182,0.0002927,2]
[359556617,1746123038390,-1802.268,0.0002927,2]
[359556619,1746123038400,-878.0,0.0002927,2]
[359556620,1746123038411,-742.555,0.0002927,2]
[359556623,1746123038423,-994.6,0.000293,2]
[359556625,1746123038433,-374.0,0.000293,2]
[359556627,1746123038442,-764.0,0.000293,2]
[359556629,1746123038451,-236.0,0.000293,2]
[359556631,1746123038460,-305.72435925,0.00029462,2]
[359556632,1746123038470,-219.24685664,0.00029462,2]
[359556634,1746123038479,-500.0,0.00029609,2]
[359556637,1746123038489,-500.0,0.00029609,2]
[359556638,1746123038498,-221.11031576,0.00029609,2]
[359556640,1746123038507,-263.93407799,0.00029609,2]
[359556643,1746123038517,-153.98254076,0.00029609,2]
[359556645,1746123038526,-198.67236065,0.00029609,2]
[359556646,1746123038535,-203.24669189,0.00029609,2]
[359556648,1746123038544,-500.0,0.00029609,2]
[359556650,1746123038553,-603.95193513,0.00029609,2]
[359556652,1746123038563,-500.0,0.00029609,2]
[359556654,1746123038572,-500.0,0.00029609,2]
[359556656,1746123038582,-504.61697434,0.00029609,2]
[359556658,1746123038592,-57172.2287952,0.0002961,2]
[359556660,1746123038601,-74300.28627454,0.0002962,2]
[359556662,1746123038610,-150.0,0.00029662,2]
[359556664,1746123038619,-150.0,0.00029662,2]
[359556666,1746123038628,-150.0,0.00029662,2]
[359556668,1746123038637,-150.0,0.00029662,2]
[359556670,1746123038647,-2000.0,0.00029678,15]
[359556672,1746123038656,-200.0,0.00029678,2]
[359556674,1746123038666,-863.1082,0.00029806,2]
[359556676,1746123038676,-5264.1828,0.00029806,2]
[359556677,1746123038685,-150.0,0.0002981,2]
[359556678,1746123038695,-150.0,0.00029882,2]
[359556679,1746123038704,-801.26,0.00029908,2]
[359556680,1746123038714,-801.26,0.00029908,2]
[359556681,1746123038724,-801.26,0.00029908,2]
[359556682,1746123038734,-801.26,0.00029908,2]
[359556683,1746123038743,-801.26,0.00029908,2]
[359556684,1746123038753,-801.26,0.00029908,2]
[359556685,1746123038765,-801.26,0.00029908,2]
[359556686,1746123038775,-801.26,0.00029908,2]
[359556687,1746123038785,-801.26,0.00029908,2]
[359556688,1746123038794,-801.26,0.00029908,2]
[359556689,1746123038804,-801.26,0.00029908,2]
[359556690,1746123038815,-801.26,0.00029908,2]
[359556691,1746123038824,-1515.57,0.00029908,2]
[359556692,1746123038834,-801.26,0.00029908,2]
[359556693,1746123038843,-407.83,0.00029908,2]
[359556694,1746123038853,-801.26,0.00029908,2]
[359556695,1746123038862,-801.26,0.00029908,2]
[359556696,1746123038872,-801.26,0.00029908,2]
[359556697,1746123038881,-801.26,0.00029908,2]
[359556698,1746123038891,-801.26,0.00029908,2]
[359556699,1746123038901,-1409.57,0.00029908,2]
[359556701,1746123038910,-801.26,0.00029908,2]
[359556702,1746123038919,-801.26,0.00029908,2]
[359556704,1746123038929,-294.25972169,0.00029917,2]
[359556706,1746123038938,-3036.0284715,0.00029918,2]
[359556708,1746123038947,-6212.5051127,0.00029948,2]
[359556710,1746123038956,-57172.2287952,0.00029969,2]
[359556712,1746123038965,-500.0,0.00029973,5]
[359556714,1746123038974,-127962.2434159,0.00029979,2]
[359556716,1746123038984,-338869.8392525,0.0002999,10]
[359556718,1746123038993,-4055.5809988,0.0002999,2]
[359556721,1746123039007,-24530.5333988,0.0002999,2]
[359556723,1746123039016,-1158.44044072,0.0003,10]
[359556725,1746123039026,-1246.67556792,0.0003,2]
[359556727,1746123039036,-600.0,0.0003,2]
[359556729,1746123039046,-600.0,0.0003,3]
[359556731,1746123039056,-705.71061426,0.0003,4]
[359556733,1746123039066,-1537.68,0.0003,2]
[359556735,1746123039075,-1699.9056,0.0003,2]
[359556737,1746123039085,-159.0,0.0003,2]
[359556739,1746123039094,-2089.9769,0.0003,2]
[359556741,1746123039103,-200.0,0.0003,2]
[359556743,1746123039113,-1081.1693,0.0003,2]
[359556745,1746123039122,-500.0,0.00030006,10]
[359556747,1746123039133,-151.0,0.00030079,7]
[359556749,1746123039143,-166.66,0.00030105,2]
[359556751,1746123039154,-10497.66,0.0003011,2]
[359556753,1746123039164,-610.0,0.00030137,2]